{"text_format":"1","workbook":"xlsx","n_sheets":3,"sheets":["Sheet1","Sheet3","Sheet2"],"not_rendered":{"charts":0,"images":3,"macros":0,"external_links":0,"defined_names":4,"comments":0,"pivot_tables":0},"unopened":[],"bounds":{"document_bytes":16777216,"sheet_cells":100000,"rows_first":2000,"rows_last":500,"rows_between":2000,"halvings":0,"cell_chars":16384,"cell_head_chars":4096},"cells_cut":0,"cells_raw":0,"read":"whole","date_system":"1900"}

{"sheet":"Sheet1","index":0,"n_rows":43,"n_cols":12,"rows_kept":43,"cut":false,"hidden":false,"merged":[[39,6,39,10],[10,0,10,1],[0,0,0,11],[1,0,1,11],[36,0,36,10],[3,2,3,3],[37,0,37,9],[38,0,38,10]]}
[]
[]
[null,"Semester Registered for Practicum:"]
["Type of practicum :",null,"Click arrow to select"]
["Student's Name:",null,null,null,null,null,null,null,null,"Student ID#"]
["Organization:"]
["Field Instructor's Name:"]
["Field Advisor's Name:"]
["Total Registered Credits (for this semester):",null,null,null,1,null,null,"Practicum Course:",null,null,1]
[]
["Week Date                                                   (e.g., MM/DD/YY - MM/DD/YY)",null,"MON.   Total Hours","TUES.     Total Hours","WED.      Total Hours","THUR.    Total Hours","FRI.              Total Hours","SAT.             Total Hours","SUN.             Total Hours","Total Hours Earned for the Week",null,"Total Practicum Hours to Date"]
[1,null,null,null,null,null,null,null,null,{"$f":"SUM(C12:I12)","v":0},null,{"$f":"J12","v":0}]
[2,null,null,null,null,null,null,null,null,{"$f":"SUM(C13:I13)","v":0},null,{"$f":"SUM(L12+J13)","v":0}]
[3,null,null,null,null,null,null,null,null,0,null,{"$f":"SUM(L13+J14)","v":0}]
[4,null,null,null,null,null,null,null,null,0,null,0]
[5,null,null,null,null,null,null,null,null,{"$f":"SUM(C16:I16)","v":0},null,0]
[6,null,null,null,null,null,null,null,null,0,null,0]
[7,null,null,null,null,null,null,null,null,0,null,0]
[8,null,null,null,null,null,null,null,null,0,null,0]
[9,null,null,null,null,null,null,null,null,0,null,0]
[10,null,null,null,null,null,null,null,null,0,null,0]
[11,null,null,null,null,null,null,null,null,0,null,0]
[12,null,null,null,null,null,null,null,null,0,null,0]
[13,null,null,null,null,null,null,null,null,0,null,0]
[14,null,null,null,null,null,null,null,null,0,null,0]
[15,null,null,null,null,null,null,null,null,0,null,0]
[16,null,null,null,null,null,null,null,null,0,null,0]
[17,null,null,null,null,null,null,null,null,0,null,0]
[18,null,null,null,null,null,null,null,null,0,null,0]
[19,null,null,null,null,null,null,null,null,0,null,0]
[20,null,null,null,null,null,null,null,null,0,null,0]
[21,null,null,null,null,null,null,null,null,{"$f":"SUM(C32:I32)","v":0},null,0]
[22,null,null,null,null,null,null,null,null,{"$f":"SUM(C33:I33)","v":0},null,0]
[23,null,null,null,null,null,null,null,null,{"$f":"SUM(C34:I34)","v":0},null,0]
[24,null,null,null,null,null,null,null,null,{"$f":"SUM(C35:I35)","v":0},null,0]
[25,null,null,null,null,null,null,null,null,{"$f":"SUM(C36:I36)","v":0},null,0]
["TOTAL PRACTICUM HOURS WORKED (must be equal to Required Practicum Hours):",null,null,null,null,null,null,null,null,null,null,{"$f":"L36","v":0}]
["REQUIRED PRACTICUM HOURS (corresponds with Total Registered Credits for this semester, as indicated above)",null,null,null,null,null,null,null,null,null,"REQUIRED PRACTICUM HOURS (corresponds with Total Registered Credits for this semester, as indicated above):",{"$f":"IF(E9=1, 0, IF(E9=2,120, IF(E9=3,240, IF(E9=4, 360, IF(E9=5,480, IF(E9=6, 600))))))","v":0}]
["BALANCE OF PRACTICUM HOURS:",null,null,null,null,null,null,null,null,null,null,{"$f":"L38-L37","v":0}]
["           Timesheets without required signatures WILL NOT be accepted."]
[]
["Field Instructor's Signature:",null,null,null,null,null,null,null,null,"Date:"]
["Student's Signature:",null,null,null,null,null,null,null,null,"Date:"]

{"sheet":"Sheet3","index":1,"n_rows":7,"n_cols":1,"rows_kept":7,"cut":false,"hidden":true,"merged":[]}
["Click arrow to select"]
["1st semester only"]
["1st semester of a 2 semester practicum "]
["2nd semester of a 2 semester practicum "]
["1st semester of a 3 semester practicum "]
["2nd semester of a 3 semester practicum "]
["3rd semester of a 3 semester practicum "]

{"sheet":"Sheet2","index":2,"n_rows":22,"n_cols":2,"rows_kept":22,"cut":false,"hidden":true,"merged":[]}
["Click arrow to select",3]
["1 Credit (120 hours)",120]
["2 Credits (240 hours)",240]
["3 Credits (360 hours)",360]
["4 Credits (480 hours)",480]
["5 Credits (600 hours)",600]
[]
["Click arrow to select"]
["S70 SWPR 5006"]
["S70 SWPR 5012"]
["S70 SWPR 5013"]
["Click arrow to select"]
["S70 SWPR 5014"]
["S70 SWPR 5018"]
["S70 SWPR 5022"]
["S70 SWPR 5032"]
["S55 MPH 5701"]
["S55 MPH 5702"]
["Click arrow to select"]
["S70 SWPR 5036"]
["S70 SWPR 5037"]
["S70 SWPR 5038"]